[Event "Early-Titled-Tuesday-Blitz-July-09-2024"]
[Site "Chess.com"]
[Date "2024.07.09"]
[Round "3"]
[White "Sadykov_Ramil"]
[Black "rasmussvane"]
[Result "0-1"]
[WhiteElo "2613"]
[BlackElo "2909"]
[TimeControl "180+1"]
[EndTime "8:31:43 PDT"]
[Termination "rasmussvane won by resignation"]

1. e4 {[%clk 0:03:00.9]} 1... c6 {[%clk 0:02:51.9]} 2. Nf3 {[%clk 0:02:56.1]}
2... d5 {[%clk 0:02:52.8]} 3. Nc3 {[%clk 0:02:51.7]} 3... dxe4 {[%clk
0:02:49.6]} 4. Nxe4 {[%clk 0:02:51.8]} 4... Nf6 {[%clk 0:02:49.7]} 5. Qe2 {[%clk
0:02:51.2]} 5... Nxe4 {[%clk 0:02:47.4]} 6. Qxe4 {[%clk 0:02:52.1]} 6... Qa5
{[%clk 0:02:47.1]} 7. Bc4 {[%clk 0:02:44.5]} 7... Bf5 {[%clk 0:02:45.6]} 8. Qe3
{[%clk 0:02:34.6]} 8... e6 {[%clk 0:02:44.2]} 9. Bb3 {[%clk 0:02:08.4]} 9... Bd6
{[%clk 0:02:39.5]} 10. O-O {[%clk 0:02:05.8]} 10... O-O {[%clk 0:02:38.5]} 11.
Nh4 {[%clk 0:01:59.3]} 11... Nd7 {[%clk 0:02:35.5]} 12. Nxf5 {[%clk 0:01:52.3]}
12... Qxf5 {[%clk 0:02:34.4]} 13. d4 {[%clk 0:01:50.6]} 13... Nf6 {[%clk
0:02:33.7]} 14. g3 {[%clk 0:01:40.8]} 14... Rfe8 {[%clk 0:02:32]} 15. Kg2 {[%clk
0:01:37.5]} 15... Rad8 {[%clk 0:02:24.2]} 16. Qf3 {[%clk 0:01:32.4]} 16... Qg6
{[%clk 0:02:17.7]} 17. h4 {[%clk 0:01:20.1]} 17... h6 {[%clk 0:02:15.3]} 18. c3
{[%clk 0:01:19.3]} 18... Qe4 {[%clk 0:01:50.7]} 19. Qxe4 {[%clk 0:01:12.2]}
19... Nxe4 {[%clk 0:01:51.6]} 20. Re1 {[%clk 0:01:09.2]} 20... Nf6 {[%clk
0:01:51.7]} 21. a4 {[%clk 0:01:09.2]} 21... Kf8 {[%clk 0:01:50.7]} 22. a5 {[%clk
0:01:05.7]} 22... a6 {[%clk 0:01:48.2]} 23. Kf3 {[%clk 0:01:02.4]} 23... Rd7
{[%clk 0:01:48.5]} 24. Bc4 {[%clk 0:00:52.8]} 24... Rc8 {[%clk 0:01:47.5]} 25.
b4 {[%clk 0:00:49.7]} 25... Re8 {[%clk 0:01:47.3]} 26. Bf4 {[%clk 0:00:42.4]}
26... Bxf4 {[%clk 0:01:46.9]} 27. Kxf4 {[%clk 0:00:43.3]} 27... Nd5+ {[%clk
0:01:47.1]} 28. Bxd5 {[%clk 0:00:43.2]} 28... cxd5 {[%clk 0:01:48]} 29. Ke3
{[%clk 0:00:39.2]} 29... Rc7 {[%clk 0:01:48.1]} 30. Kd2 {[%clk 0:00:38.8]} 30...
Rec8 {[%clk 0:01:48.9]} 31. Ra3 {[%clk 0:00:37.6]} 31... Ke7 {[%clk 0:01:49.1]}
32. Rb1 {[%clk 0:00:37.5]} 32... g5 {[%clk 0:01:48.7]} 33. hxg5 {[%clk
0:00:36.5]} 33... hxg5 {[%clk 0:01:49.6]} 34. b5 {[%clk 0:00:36.7]} 34... axb5
{[%clk 0:01:50.5]} 35. Rxb5 {[%clk 0:00:36.5]} 35... Kf6 {[%clk 0:01:41]} 36.
Rab3 {[%clk 0:00:35.5]} 36... Ra8 {[%clk 0:01:41.3]} 37. g4 {[%clk 0:00:26.8]}
37... Ra7 {[%clk 0:01:38.9]} 38. Kd3 {[%clk 0:00:23.5]} 38... Rc8 {[%clk
0:01:38]} 39. Rxb7 {[%clk 0:00:21.4]} 39... Rxa5 {[%clk 0:01:37.6]} 40. R3b5
{[%clk 0:00:14.1]} 40... Ra1 {[%clk 0:01:27.5]} 41. Rb1 {[%clk 0:00:13.7]} 41...
Ra3 {[%clk 0:01:26.1]} 42. R1b3 {[%clk 0:00:12]} 42... Ra5 {[%clk 0:01:25]} 43.
R3b5 {[%clk 0:00:11.9]} 43... Rxb5 {[%clk 0:01:25.6]} 44. Rxb5 {[%clk
0:00:11.7]} 44... Rh8 {[%clk 0:01:26.3]} 45. f3 {[%clk 0:00:06.1]} 45... Rh2
{[%clk 0:01:26.1]} 46. Rb7 {[%clk 0:00:04.9]} 46... Rf2 {[%clk 0:01:25.2]} 47.
Ke3 {[%clk 0:00:05.3]} 47... Rc2 {[%clk 0:01:25.8]} 48. Rc7 {[%clk 0:00:05.3]}
48... Kg6 {[%clk 0:01:25.3]} 49. Kd3 {[%clk 0:00:05.6]} 49... Rh2 {[%clk
0:01:24.7]} 50. Rc6 {[%clk 0:00:05]} 50... Rg2 {[%clk 0:01:23.3]} 51. Ke3 {[%clk
0:00:04.9]} 51... Kf6 {[%clk 0:01:22.2]} 52. Kd3 {[%clk 0:00:05]} 52... Kg7
{[%clk 0:01:21.4]} 53. Ke3 {[%clk 0:00:03.8]} 53... Rh2 {[%clk 0:01:20.4]} 54.
Kd3 {[%clk 0:00:04.1]} 54... Kf6 {[%clk 0:01:10.9]} 55. Ke3 {[%clk 0:00:04.2]}
55... Rh8 {[%clk 0:01:11]} 56. c4 {[%clk 0:00:02.8]} 56... dxc4 {[%clk
0:01:10.9]} 57. Rxc4 {[%clk 0:00:03.7]} 57... Rd8 {[%clk 0:01:06.2]} 58. Rc6
{[%clk 0:00:02.9]} 58... Rd7 {[%clk 0:01:04.8]} 59. Ke4 {[%clk 0:00:03.3]} 59...
Kg6 {[%clk 0:01:04.1]} 60. Rb6 {[%clk 0:00:02.9]} 60... Rd8 {[%clk 0:01:03.8]}
61. Rc6 {[%clk 0:00:02.4]} 61... Kg7 {[%clk 0:01:03]} 62. Rc5 {[%clk 0:00:02]}
62... Kf6 {[%clk 0:01:02.8]} 63. Rc6 {[%clk 0:00:02.6]} 63... Rd5 {[%clk
0:00:59.1]} 64. Rb6 {[%clk 0:00:02.8]} 64... Ra5 {[%clk 0:00:58.7]} 65. Rb7
{[%clk 0:00:03.1]} 65... Ra1 {[%clk 0:00:57.6]} 66. Rb6 {[%clk 0:00:03.5]} 66...
Re1+ {[%clk 0:00:57.7]} 67. Kd3 {[%clk 0:00:03.5]} 67... Kg6 {[%clk 0:00:58.2]}
68. Rb7 {[%clk 0:00:03.4]} 68... f5 {[%clk 0:00:55.9]} 69. gxf5+ {[%clk
0:00:02.5]} 69... exf5 {[%clk 0:00:56.8]} 70. d5 {[%clk 0:00:02.2]} 70... f4
{[%clk 0:00:55.5]} 71. Rb6+ {[%clk 0:00:01]} 71... Kf5 {[%clk 0:00:55.5]} 72.
Kd2 {[%clk 0:00:01.3]} 72... Re3 {[%clk 0:00:55.4]} 73. d6 {[%clk 0:00:01.6]}
73... Re5 {[%clk 0:00:36]} 74. d7 {[%clk 0:00:01]} 74... Rd5+ {[%clk 0:00:36.3]}
75. Ke2 {[%clk 0:00:01.7]} 75... Rxd7 {[%clk 0:00:37.2]} 76. Rb5+ {[%clk
0:00:02.1]} 76... Kg6 {[%clk 0:00:37.7]} 77. Rc5 {[%clk 0:00:02.4]} 77... Kh5
{[%clk 0:00:37.7]} 78. Kf2 {[%clk 0:00:02.9]} 78... Kh4 {[%clk 0:00:37.2]} 79.
Rc8 {[%clk 0:00:03]} 79... Rd2+ {[%clk 0:00:37]} 80. Ke1 {[%clk 0:00:02.9]}
80... Ra2 {[%clk 0:00:31.8]} 81. Rg8 {[%clk 0:00:03.4]} 81... Kg3 {[%clk
0:00:23.6]} 82. Rxg5+ {[%clk 0:00:03.1]} 82... Kxf3 {[%clk 0:00:23.8]} 83. Rf5
{[%clk 0:00:03.4]} 83... Ra4 {[%clk 0:00:19.7]} 84. Rg5 {[%clk 0:00:02.5]} 84...
Ra1+ {[%clk 0:00:19]} 85. Kd2 {[%clk 0:00:02.7]} 85... Kf2 {[%clk 0:00:19.6]}
86. Rf5 {[%clk 0:00:01.6]} 86... f3 {[%clk 0:00:19.7]} 87. Rg5 {[%clk
0:00:02.1]} 87... Ra8 {[%clk 0:00:16.9]} 88. Rg7 {[%clk 0:00:01.9]} 88... Rd8+
{[%clk 0:00:15.9]} 89. Kc2 {[%clk 0:00:02.1]} 89... Kf1 {[%clk 0:00:15.9]} 90.
Rf7 {[%clk 0:00:02]} 90... f2 {[%clk 0:00:16.3]} 91. Rf6 {[%clk 0:00:01.7]}
91... Rg8 {[%clk 0:00:14]} 92. Rf7 {[%clk 0:00:01.3]} 92... Kg2 {[%clk
0:00:14.3]} 0-1

[Event "Early-Titled-Tuesday-Blitz-July-09-2024"]
[Site "Chess.com"]
[Date "2024.07.09"]
[Round "3"]
[White "UK_23"]
[Black "Feegus"]
[Result "0-1"]
[WhiteElo "2418"]
[BlackElo "2628"]
[TimeControl "180+1"]
[EndTime "8:31:55 PDT"]
[Termination "Feegus won by checkmate"]

1. e4 {[%clk 0:03:00.9]} 1... e5 {[%clk 0:02:59.8]} 2. Nf3 {[%clk 0:03:00.4]}
2... Nf6 {[%clk 0:03:00.3]} 3. Nxe5 {[%clk 0:02:59.2]} 3... d6 {[%clk
0:03:00.9]} 4. Nf3 {[%clk 0:02:58.9]} 4... Nxe4 {[%clk 0:03:01.5]} 5. Nc3 {[%clk
0:02:59.1]} 5... Nxc3 {[%clk 0:03:01.7]} 6. dxc3 {[%clk 0:03:00]} 6... Be7
{[%clk 0:03:02.4]} 7. Bf4 {[%clk 0:02:58.8]} 7... O-O {[%clk 0:03:02.6]} 8. Qd2
{[%clk 0:02:59]} 8... Nd7 {[%clk 0:03:03.1]} 9. O-O-O {[%clk 0:02:58.8]} 9...
Nc5 {[%clk 0:03:03.1]} 10. Kb1 {[%clk 0:02:49.7]} 10... Re8 {[%clk 0:03:02.8]}
11. Re1 {[%clk 0:02:39.3]} 11... Bf5 {[%clk 0:03:02.4]} 12. Bd3 {[%clk
0:02:26.7]} 12... Nxd3 {[%clk 0:03:02.2]} 13. cxd3 {[%clk 0:02:27.6]} 13... Qd7
{[%clk 0:03:01.8]} 14. h4 {[%clk 0:02:26.1]} 14... Qb5 {[%clk 0:02:58]} 15. Kc2
{[%clk 0:02:19.5]} 15... Bxd3+ {[%clk 0:02:51.2]} 16. Qxd3 {[%clk 0:02:19]}
16... Qa4+ {[%clk 0:02:51.9]} 17. Kb1 {[%clk 0:02:13.6]} 17... Qxf4 {[%clk
0:02:52.5]} 18. Re4 {[%clk 0:02:14.3]} 18... Qf5 {[%clk 0:02:41.9]} 19. g4
{[%clk 0:02:14]} 19... Qd7 {[%clk 0:02:41.4]} 20. Rhe1 {[%clk 0:02:11.4]} 20...
Bf8 {[%clk 0:02:39.4]} 21. g5 {[%clk 0:02:10.2]} 21... Rxe4 {[%clk 0:02:35.9]}
22. Qxe4 {[%clk 0:02:11.1]} 22... d5 {[%clk 0:02:25]} 23. Qe5 {[%clk 0:01:59.6]}
23... Qd6 {[%clk 0:02:18.8]} 24. Qe2 {[%clk 0:01:43.6]} 24... c5 {[%clk
0:02:16.9]} 25. h5 {[%clk 0:01:42.6]} 25... Qf4 {[%clk 0:02:11.8]} 26. Rd1
{[%clk 0:01:36.3]} 26... Rd8 {[%clk 0:02:10.1]} 27. a3 {[%clk 0:01:28.2]} 27...
d4 {[%clk 0:02:07.6]} 28. cxd4 {[%clk 0:01:28.2]} 28... cxd4 {[%clk 0:02:08.5]}
29. Rd3 {[%clk 0:01:27.6]} 29... Qg4 {[%clk 0:02:01.4]} 30. Qe5 {[%clk
0:01:12.4]} 30... Qxh5 {[%clk 0:01:55.7]} 31. Rxd4 {[%clk 0:01:12.8]} 31... Rc8
{[%clk 0:01:31.7]} 32. Qf5 {[%clk 0:01:04.1]} 32... Rc5 {[%clk 0:01:17.5]} 33.
Qd3 {[%clk 0:00:53.8]} 33... a5 {[%clk 0:00:46]} 34. Rd8 {[%clk 0:00:52.5]}
34... Qg6 {[%clk 0:00:44.1]} 35. Qxg6 {[%clk 0:00:44.9]} 35... fxg6 {[%clk
0:00:43]} 36. Rb8 {[%clk 0:00:45.8]} 36... Rf5 {[%clk 0:00:37.1]} 37. Nd4 {[%clk
0:00:44]} 37... Rxg5 {[%clk 0:00:33.7]} 38. Rxf8+ {[%clk 0:00:40]} 38... Kxf8
{[%clk 0:00:33.3]} 39. Ne6+ {[%clk 0:00:40.7]} 39... Ke7 {[%clk 0:00:27]} 40.
Nxg5 {[%clk 0:00:41.6]} 40... h6 {[%clk 0:00:26]} 41. Ne4 {[%clk 0:00:39.2]}
41... Ke6 {[%clk 0:00:19.7]} 42. Kc2 {[%clk 0:00:40.1]} 42... Kd5 {[%clk
0:00:18.7]} 43. Kd3 {[%clk 0:00:41]} 43... h5 {[%clk 0:00:18.2]} 44. b3 {[%clk
0:00:39.2]} 44... b5 {[%clk 0:00:18.1]} 45. Nc3+ {[%clk 0:00:36.4]} 45... Kc5
{[%clk 0:00:18.1]} 46. Ne4+ {[%clk 0:00:36.9]} 46... Kd5 {[%clk 0:00:18.2]} 47.
b4 {[%clk 0:00:36.6]} 47... a4 {[%clk 0:00:17.3]} 48. Nc3+ {[%clk 0:00:35.3]}
48... Ke5 {[%clk 0:00:14.9]} 49. Ke3 {[%clk 0:00:33.6]} 49... g5 {[%clk
0:00:13.1]} 50. Nxb5 {[%clk 0:00:33.5]} 50... g4 {[%clk 0:00:13.1]} 51. Nc3
{[%clk 0:00:33.5]} 51... h4 {[%clk 0:00:13.5]} 52. Ne2 {[%clk 0:00:27.5]} 52...
g5 {[%clk 0:00:12]} 53. Kd3 {[%clk 0:00:22.6]} 53... Kd5 {[%clk 0:00:07.2]} 54.
Ke3 {[%clk 0:00:18.2]} 54... Ke5 {[%clk 0:00:07.4]} 55. Ng1 {[%clk 0:00:15.5]}
55... Kd5 {[%clk 0:00:06.1]} 56. b5 {[%clk 0:00:13.2]} 56... Kc5 {[%clk
0:00:06]} 57. b6 {[%clk 0:00:13.1]} 57... Kxb6 {[%clk 0:00:06.4]} 58. Kd4 {[%clk
0:00:13.2]} 58... Kb5 {[%clk 0:00:05.8]} 59. Ne2 {[%clk 0:00:13.8]} 59... Kb6
{[%clk 0:00:02.5]} 60. Kc4 {[%clk 0:00:14]} 60... Kc6 {[%clk 0:00:03.2]} 61. Kb4
{[%clk 0:00:14.2]} 61... Kd5 {[%clk 0:00:04.1]} 62. Kxa4 {[%clk 0:00:14.7]}
62... Ke4 {[%clk 0:00:04.9]} 63. Kb3 {[%clk 0:00:15]} 63... Kf3 {[%clk
0:00:05.5]} 64. Nd4+ {[%clk 0:00:14.9]} 64... Ke4 {[%clk 0:00:05.3]} 65. Kc4
{[%clk 0:00:14.2]} 65... g3 {[%clk 0:00:03.4]} 66. fxg3 {[%clk 0:00:13.3]} 66...
h3 {[%clk 0:00:04]} 67. Ne6 {[%clk 0:00:08.2]} 67... Kf5 {[%clk 0:00:01.9]} 68.
Nd4+ {[%clk 0:00:08.5]} 68... Kg4 {[%clk 0:00:02.5]} 69. Nc2 {[%clk 0:00:05.8]}
69... h2 {[%clk 0:00:01.8]} 70. Ne3+ {[%clk 0:00:06.3]} 70... Kf3 {[%clk
0:00:02.2]} 71. Nc2 {[%clk 0:00:05.2]} 71... h1=Q {[%clk 0:00:02.3]} 72. Nd4+
{[%clk 0:00:06.1]} 72... Ke4 {[%clk 0:00:01.5]} 73. a4 {[%clk 0:00:07]} 73...
Qc1+ {[%clk 0:00:01.6]} 74. Kb5 {[%clk 0:00:07.9]} 74... Qa1 {[%clk 0:00:02.1]}
75. Nb3 {[%clk 0:00:07.6]} 75... Qb1 {[%clk 0:00:02.4]} 76. Kb4 {[%clk
0:00:08.5]} 76... Kd5 {[%clk 0:00:02.6]} 77. a5 {[%clk 0:00:09.4]} 77... Kc6
{[%clk 0:00:03]} 78. Kc4 {[%clk 0:00:09.2]} 78... Kb7 {[%clk 0:00:03]} 79. Nd4
{[%clk 0:00:07.1]} 79... Qg1 {[%clk 0:00:03.1]} 80. Kd5 {[%clk 0:00:07.8]} 80...
Qxg3 {[%clk 0:00:03.1]} 81. Ke4 {[%clk 0:00:06.2]} 81... Qf4+ {[%clk 0:00:03.4]}
82. Kd5 {[%clk 0:00:06.1]} 82... g4 {[%clk 0:00:03]} 83. Ne6 {[%clk 0:00:07]}
83... Qf3+ {[%clk 0:00:02.8]} 84. Kd6 {[%clk 0:00:07.9]} 84... g3 {[%clk
0:00:03.2]} 85. Nc5+ {[%clk 0:00:08.2]} 85... Ka8 {[%clk 0:00:03.7]} 86. Ne6
{[%clk 0:00:08.3]} 86... g2 {[%clk 0:00:04]} 87. Nd4 {[%clk 0:00:09.2]} 87...
Qd1 {[%clk 0:00:03.3]} 88. Kc5 {[%clk 0:00:10.1]} 88... Qxd4+ {[%clk 0:00:03.7]}
89. Kxd4 {[%clk 0:00:10.4]} 89... g1=Q+ {[%clk 0:00:04.6]} 90. Kc4 {[%clk
0:00:10.9]} 90... Ka7 {[%clk 0:00:05.2]} 91. Kb4 {[%clk 0:00:11.8]} 91... Ka6
{[%clk 0:00:05.7]} 92. Ka4 {[%clk 0:00:11.8]} 92... Qg4+ {[%clk 0:00:05.9]} 93.
Ka3 {[%clk 0:00:12.7]} 93... Kxa5 {[%clk 0:00:06.5]} 94. Kb3 {[%clk 0:00:13.6]}
94... Qd4 {[%clk 0:00:05.6]} 95. Kc2 {[%clk 0:00:13.6]} 95... Qe3 {[%clk
0:00:06]} 96. Kb2 {[%clk 0:00:14]} 96... Qd3 {[%clk 0:00:06.5]} 97. Ka2 {[%clk
0:00:14.9]} 97... Qc3 {[%clk 0:00:06.8]} 98. Kb1 {[%clk 0:00:15.1]} 98... Qd2
{[%clk 0:00:07.3]} 99. Ka1 {[%clk 0:00:15.3]} 99... Kb4 {[%clk 0:00:08]} 100.
Kb1 {[%clk 0:00:16.2]} 100... Kb3 {[%clk 0:00:08.7]} 101. Ka1 {[%clk 0:00:17.1]}
101... Qb2# {[%clk 0:00:09.2]} 0-1

[Event "Early-Titled-Tuesday-Blitz-July-09-2024"]
[Site "Chess.com"]
[Date "2024.07.09"]
[Round "4"]
[White "Andrey-Ivanov2011"]
[Black "PapaieDudu"]
[Result "0-1"]
[WhiteElo "2157"]
[BlackElo "2404"]
[TimeControl "180+1"]
[EndTime "8:34:43 PDT"]
[Termination "PapaieDudu won by resignation"]

1. d4 {[%clk 0:03:00.9]} 1... d5 {[%clk 0:02:56.7]} 2. c4 {[%clk 0:03:01]} 2...
e6 {[%clk 0:02:56.8]} 3. Nc3 {[%clk 0:03:01.3]} 3... Nf6 {[%clk 0:02:57.3]} 4.
cxd5 {[%clk 0:02:59.5]} 4... exd5 {[%clk 0:02:57.4]} 5. Bg5 {[%clk 0:02:52.3]}
5... Be7 {[%clk 0:02:56.9]} 6. e3 {[%clk 0:02:49.3]} 6... O-O {[%clk 0:02:56.1]}
7. Bd3 {[%clk 0:02:49.7]} 7... h6 {[%clk 0:02:55.3]} 8. Bf4 {[%clk 0:02:48.8]}
8... c5 {[%clk 0:02:52]} 9. h3 {[%clk 0:02:48.6]} 9... cxd4 {[%clk 0:02:51.3]}
10. exd4 {[%clk 0:02:45.7]} 10... Nc6 {[%clk 0:02:51.3]} 11. Nf3 {[%clk
0:02:44]} 11... Qb6 {[%clk 0:02:43.1]} 12. O-O {[%clk 0:02:43.3]} 12... Qxb2
{[%clk 0:02:41.8]} 13. Na4 {[%clk 0:02:36.8]} 13... Qa3 {[%clk 0:02:41.7]} 14.
Rb1 {[%clk 0:02:28.3]} 14... Nb4 {[%clk 0:02:20.4]} 15. Bc1 {[%clk 0:02:13.1]}
15... Qxd3 {[%clk 0:02:19.3]} 16. Qxd3 {[%clk 0:02:10.5]} 16... Nxd3 {[%clk
0:02:18.8]} 0-1

[Event "Early-Titled-Tuesday-Blitz-July-09-2024"]
[Site "Chess.com"]
[Date "2024.07.09"]
[Round "4"]
[White "subham777"]
[Black "Makswolf200817"]
[Result "0-1"]
[WhiteElo "2550"]
[BlackElo "2765"]
[TimeControl "180+1"]
[EndTime "8:35:14 PDT"]
[Termination "Makswolf200817 won by resignation"]

1. e4 {[%clk 0:03:00.9]} 1... c5 {[%clk 0:02:58.2]} 2. Nf3 {[%clk 0:02:59.4]}
2... d6 {[%clk 0:02:58.6]} 3. d4 {[%clk 0:02:57.6]} 3... cxd4 {[%clk 0:02:59.5]}
4. Qxd4 {[%clk 0:02:57.8]} 4... Nc6 {[%clk 0:02:59.6]} 5. Bb5 {[%clk 0:02:57.3]}
5... Bd7 {[%clk 0:03:00.3]} 6. Bxc6 {[%clk 0:02:57.5]} 6... Bxc6 {[%clk
0:03:01.2]} 7. c4 {[%clk 0:02:57.5]} 7... f5 {[%clk 0:03:00.3]} 8. Nc3 {[%clk
0:02:51.7]} 8... Nf6 {[%clk 0:02:42.3]} 9. Qd3 {[%clk 0:02:50.4]} 9... fxe4
{[%clk 0:02:41.2]} 10. Qe2 {[%clk 0:02:36.8]} 10... exf3 {[%clk 0:02:40.9]} 11.
gxf3 {[%clk 0:02:37.6]} 11... e5 {[%clk 0:02:34.5]} 12. Bg5 {[%clk 0:02:37.3]}
12... Be7 {[%clk 0:02:34.4]} 13. O-O-O {[%clk 0:02:36]} 13... Nh5 {[%clk
0:02:28.9]} 14. Be3 {[%clk 0:02:18.4]} 14... O-O {[%clk 0:02:26.6]} 15. f4
{[%clk 0:02:16.1]} 15... Nxf4 {[%clk 0:02:24.7]} 16. Bxf4 {[%clk 0:02:16]} 16...
Rxf4 {[%clk 0:02:25.6]} 17. Rhg1 {[%clk 0:02:16]} 17... Bf3 {[%clk 0:02:22.6]}
18. Qd2 {[%clk 0:02:14.9]} 18... Rd4 {[%clk 0:02:18.7]} 19. Qe3 {[%clk
0:02:12.3]} 19... Bxd1 {[%clk 0:02:18.2]} 20. Nxd1 {[%clk 0:02:11.1]} 20...
Rxc4+ {[%clk 0:02:14.1]} 21. Kb1 {[%clk 0:02:11]} 21... Rac8 {[%clk 0:02:13.5]}
22. Nc3 {[%clk 0:02:09.5]} 22... Rxc3 {[%clk 0:02:08]} 23. bxc3 {[%clk
0:02:08.3]} 23... Qb6+ {[%clk 0:02:08.6]} 0-1

[Event "Early-Titled-Tuesday-Blitz-July-09-2024"]
[Site "Chess.com"]
[Date "2024.07.09"]
[Round "4"]
[White "SHIVACalypso"]
[Black "santig8"]
[Result "1-0"]
[WhiteElo "2504"]
[BlackElo "2286"]
[TimeControl "180+1"]
[EndTime "8:35:29 PDT"]
[Termination "SHIVACalypso won by resignation"]

1. Nf3 {[%clk 0:02:59.9]} 1... Nf6 {[%clk 0:02:59.6]} 2. c4 {[%clk 0:02:59.8]}
2... d6 {[%clk 0:02:55.8]} 3. g3 {[%clk 0:02:59.3]} 3... e5 {[%clk 0:02:54.8]}
4. Nc3 {[%clk 0:02:57.4]} 4... g6 {[%clk 0:02:49.7]} 5. d3 {[%clk 0:02:55]} 5...
Bg7 {[%clk 0:02:48.9]} 6. Bg2 {[%clk 0:02:54.5]} 6... O-O {[%clk 0:02:48.7]} 7.
O-O {[%clk 0:02:50.6]} 7... c6 {[%clk 0:02:44.9]} 8. Rb1 {[%clk 0:02:42.3]} 8...
Bf5 {[%clk 0:02:39.5]} 9. b4 {[%clk 0:02:38.4]} 9... e4 {[%clk 0:02:23.3]} 10.
Nh4 {[%clk 0:02:34.4]} 10... exd3 {[%clk 0:02:19.1]} 11. Nxf5 {[%clk 0:02:34]}
11... dxe2 {[%clk 0:02:17.7]} 12. Nxe2 {[%clk 0:02:32.1]} 12... gxf5 {[%clk
0:02:17.4]} 13. Nd4 {[%clk 0:02:30.1]} 13... Qd7 {[%clk 0:02:14.3]} 14. Bh3
{[%clk 0:02:29.1]} 14... Na6 {[%clk 0:02:09.6]} 15. Nxf5 {[%clk 0:02:27.1]}
15... Qc7 {[%clk 0:02:04.5]} 16. Nxg7 {[%clk 0:02:17]} 16... Kxg7 {[%clk
0:02:03.4]} 17. Bb2 {[%clk 0:02:16.1]} 17... Qe7 {[%clk 0:01:54.3]} 18. Qg4+
{[%clk 0:02:05.5]} 18... Kh8 {[%clk 0:01:52.6]} 19. Qg5 {[%clk 0:02:05.7]} 1-0

[Event "Early-Titled-Tuesday-Blitz-July-09-2024"]
[Site "Chess.com"]
[Date "2024.07.09"]
[Round "4"]
[White "LileKoridze"]
[Black "Mysterio47"]
[Result "0-1"]
[WhiteElo "2425"]
[BlackElo "2747"]
[TimeControl "180+1"]
[EndTime "8:35:35 PDT"]
[Termination "Mysterio47 won by resignation"]

1. d4 {[%clk 0:03:00.9]} 1... d6 {[%clk 0:03:00.9]} 2. Nf3 {[%clk 0:02:59.7]}
2... Nf6 {[%clk 0:03:01.1]} 3. c4 {[%clk 0:02:59.4]} 3... g6 {[%clk 0:03:00.7]}
4. Nc3 {[%clk 0:02:59.5]} 4... Bg7 {[%clk 0:03:01.4]} 5. e4 {[%clk 0:02:59.4]}
5... O-O {[%clk 0:03:02]} 6. Be2 {[%clk 0:02:59.8]} 6... e5 {[%clk 0:03:02.1]}
7. d5 {[%clk 0:02:59.9]} 7... Nbd7 {[%clk 0:03:00.2]} 8. O-O {[%clk 0:02:59.6]}
8... Nc5 {[%clk 0:03:00]} 9. Nd2 {[%clk 0:02:58.5]} 9... a5 {[%clk 0:02:58.2]}
10. h3 {[%clk 0:02:58.8]} 10... Bh6 {[%clk 0:02:56.2]} 11. Qc2 {[%clk
0:02:58.4]} 11... Nfd7 {[%clk 0:02:44]} 12. b3 {[%clk 0:02:41.4]} 12... f5
{[%clk 0:02:40.1]} 13. exf5 {[%clk 0:02:40.3]} 13... gxf5 {[%clk 0:02:41]} 14.
Bb2 {[%clk 0:02:38.8]} 14... Nf6 {[%clk 0:02:37.3]} 15. Nf3 {[%clk 0:02:38.5]}
15... Rf7 {[%clk 0:02:22.1]} 16. a3 {[%clk 0:02:29]} 16... Rg7 {[%clk
0:02:15.3]} 17. b4 {[%clk 0:02:26.9]} 17... Nce4 {[%clk 0:02:15.4]} 18. Nxe4
{[%clk 0:02:25]} 18... fxe4 {[%clk 0:02:16.3]} 19. Ne1 {[%clk 0:02:17.7]} 19...
Bxh3 {[%clk 0:02:15.8]} 20. Kh1 {[%clk 0:02:11.9]} 20... Qd7 {[%clk 0:02:11.9]}
21. Bc1 {[%clk 0:01:52.8]} 21... Bxg2+ {[%clk 0:02:01.5]} 22. Nxg2 {[%clk
0:01:52.3]} 22... Qh3+ {[%clk 0:02:00.3]} 0-1

[Event "Early-Titled-Tuesday-Blitz-July-09-2024"]
[Site "Chess.com"]
[Date "2024.07.09"]
[Round "4"]
[White "Lupul_Cenusiu"]
[Black "banjadvorovi"]
[Result "0-1"]
[WhiteElo "2694"]
[BlackElo "2438"]
[TimeControl "180+1"]
[EndTime "8:35:40 PDT"]
[Termination "banjadvorovi won by resignation"]

1. e4 {[%clk 0:03:00.9]} 1... Nf6 {[%clk 0:02:12.6]} 2. e5 {[%clk 0:03:00.3]}
2... Ng8 {[%clk 0:02:12.7]} 3. d4 {[%clk 0:03:00]} 3... d6 {[%clk 0:02:13]} 4.
Nf3 {[%clk 0:03:00.4]} 4... Nc6 {[%clk 0:02:10.9]} 5. Bc4 {[%clk 0:02:57.7]}
5... dxe5 {[%clk 0:02:06.7]} 6. dxe5 {[%clk 0:02:43.7]} 6... Qxd1+ {[%clk
0:02:05.9]} 7. Kxd1 {[%clk 0:02:44.6]} 7... Bg4 {[%clk 0:02:04.3]} 8. Bf4 {[%clk
0:02:43.7]} 8... O-O-O+ {[%clk 0:02:03.2]} 9. Kc1 {[%clk 0:02:43.8]} 9... Bxf3
{[%clk 0:02:01.5]} 10. gxf3 {[%clk 0:02:43.9]} 10... e6 {[%clk 0:02:01.9]} 11.
Rd1 {[%clk 0:02:41]} 11... Rxd1+ {[%clk 0:01:58]} 12. Kxd1 {[%clk 0:02:41]}
12... Bc5 {[%clk 0:01:58.6]} 13. Be3 {[%clk 0:02:37.8]} 13... Bxe3 {[%clk
0:01:57.8]} 14. fxe3 {[%clk 0:02:38.7]} 14... Nxe5 {[%clk 0:01:58.1]} 15. Be2
{[%clk 0:02:37.2]} 15... Nf6 {[%clk 0:01:58.2]} 16. Nd2 {[%clk 0:02:34.1]} 16...
Rd8 {[%clk 0:01:57.8]} 17. c3 {[%clk 0:02:30.9]} 17... Nd5 {[%clk 0:01:51.5]}
18. e4 {[%clk 0:02:29.3]} 18... Nf4 {[%clk 0:01:45.6]} 19. Bf1 {[%clk
0:02:22.2]} 19... Nxf3 {[%clk 0:01:41.9]} 0-1

[Event "Early-Titled-Tuesday-Blitz-July-09-2024"]
[Site "Chess.com"]
[Date "2024.07.09"]
[Round "4"]
[White "Renatoforf"]
[Black "ThetNaung291"]
[Result "0-1"]
[WhiteElo "2128"]
[BlackElo "2448"]
[TimeControl "180+1"]
[EndTime "8:35:42 PDT"]
[Termination "ThetNaung291 won by resignation"]

1. e4 {[%clk 0:02:58.8]} 1... c5 {[%clk 0:02:59.5]} 2. d4 {[%clk 0:02:57.7]}
2... cxd4 {[%clk 0:02:59.1]} 3. c3 {[%clk 0:02:58]} 3... d3 {[%clk 0:02:58.4]}
4. Bxd3 {[%clk 0:02:56.2]} 4... Nc6 {[%clk 0:02:58.3]} 5. c4 {[%clk 0:02:55.6]}
5... d6 {[%clk 0:02:55.3]} 6. Nf3 {[%clk 0:02:55.3]} 6... g6 {[%clk 0:02:54.7]}
7. O-O {[%clk 0:02:54.1]} 7... Bg7 {[%clk 0:02:54.6]} 8. Nc3 {[%clk 0:02:53.1]}
8... Nf6 {[%clk 0:02:54.2]} 9. h3 {[%clk 0:02:49.7]} 9... O-O {[%clk 0:02:53.8]}
10. Be3 {[%clk 0:02:48]} 10... b6 {[%clk 0:02:53.5]} 11. Nd4 {[%clk 0:02:46.3]}
11... Bb7 {[%clk 0:02:52.8]} 12. Qd2 {[%clk 0:02:43]} 12... Re8 {[%clk
0:02:51.6]} 13. f3 {[%clk 0:02:39.2]} 13... Rc8 {[%clk 0:02:49.7]} 14. Rfd1
{[%clk 0:02:36.8]} 14... Ne5 {[%clk 0:02:48.7]} 15. b3 {[%clk 0:02:33.3]} 15...
Nxd3 {[%clk 0:02:42.3]} 16. Qxd3 {[%clk 0:02:32.5]} 16... Qc7 {[%clk 0:02:40.7]}
17. Rac1 {[%clk 0:02:31.1]} 17... Qb8 {[%clk 0:02:39.1]} 18. Nd5 {[%clk
0:02:29.6]} 18... Nd7 {[%clk 0:02:38.1]} 19. Kh1 {[%clk 0:02:21.7]} 19... Nc5
{[%clk 0:02:37.2]} 20. Qd2 {[%clk 0:02:19.9]} 20... e6 {[%clk 0:02:30.1]} 21.
Nc3 {[%clk 0:02:17.8]} 21... a6 {[%clk 0:02:21.8]} 22. Nde2 {[%clk 0:02:04.8]}
22... Red8 {[%clk 0:02:19.8]} 23. Bf4 {[%clk 0:01:59.8]} 23... e5 {[%clk
0:02:14.9]} 24. Be3 {[%clk 0:01:57.3]} 24... Bc6 {[%clk 0:02:12.2]} 25. Nd4
{[%clk 0:01:52.9]} 25... exd4 {[%clk 0:02:10.9]} 0-1